[Event "Titled Tuesday Blitz May 18 2021"]
[White "Matsenko, Andrei"]
[Black "Svane, Rasmus"]
[WhiteFideId "24146501"]
[BlackFideId "4657101"]
[WhiteElo "2228"]
[BlackElo "2669"]
[Result "1-0"]
[Round "03"]
[TimeControl "180+1"]
[Date "2021.05.18"]
[WhiteClock "0:00:42"]
[BlackClock "0:00:03"]

1. Nf3 {[%clk 0:02:57]}  d5 {[%clk 0:02:58]} 2. b3 {[%clk 0:02:57]}  Bg4 {[%clk 0:02:56]} 3. Bb2 {[%clk 0:02:57]}  e6 {[%clk 0:02:55]} 4. e3 {[%clk 0:02:57]}  h6 {[%clk 0:02:55]} 5. Be2 {[%clk 0:02:56]}  Nf6 {[%clk 0:02:55]} 6. O-O {[%clk 0:02:56]}  Bd6 {[%clk 0:02:56]} 7. d4 {[%clk 0:02:56]}  Nbd7 {[%clk 0:02:55]} 8. Ne5 {[%clk 0:02:56]}  Bf5 {[%clk 0:02:54]} 9. c4 {[%clk 0:02:55]}  c6 {[%clk 0:02:54]} 10. Nd2 {[%clk 0:02:53]}  O-O {[%clk 0:02:54]} 11. Rc1 {[%clk 0:02:46]}  a5 {[%clk 0:02:54]} 12. f4 {[%clk 0:02:41]}  Bh7 {[%clk 0:02:50]} 13. g4 {[%clk 0:02:36]}  a4 {[%clk 0:02:46]} 14. bxa4 {[%clk 0:02:34]}  Qa5 {[%clk 0:02:38]} 15. c5 {[%clk 0:02:34]}  Bxe5 {[%clk 0:02:27]} 16. fxe5 {[%clk 0:02:31]}  Ne4 {[%clk 0:02:27]} 17. Nxe4 {[%clk 0:02:32]}  Bxe4 {[%clk 0:02:28]} 18. Bd3 {[%clk 0:02:26]}  f5 {[%clk 0:02:20]} 19. gxf5 {[%clk 0:02:16]}  Rxf5 {[%clk 0:01:44]} 20. Bxe4 {[%clk 0:02:11]}  Rxf1+ {[%clk 0:01:33]} 21. Qxf1 {[%clk 0:02:12]}  dxe4 {[%clk 0:01:34]} 22. Qh3 {[%clk 0:02:06]}  Nf8 {[%clk 0:01:14]} 23. Qg2 {[%clk 0:01:59]}  Qxa4 {[%clk 0:01:11]} 24. Qxe4 {[%clk 0:01:58]}  Qb5 {[%clk 0:01:03]} 25. Bc3 {[%clk 0:01:53]}  Rxa2 {[%clk 0:01:00]} 26. Qf3 {[%clk 0:01:51]}  Ng6 {[%clk 0:00:55]} 27. Qf1 {[%clk 0:01:51]}  Qb3 {[%clk 0:00:52]} 28. Qh3 {[%clk 0:01:48]}  Kh7 {[%clk 0:00:48]} 29. Qf3 {[%clk 0:01:44]}  Qa3 {[%clk 0:00:44]} 30. Qf1 {[%clk 0:01:42]}  Nh4 {[%clk 0:00:43]} 31. Rc2 {[%clk 0:01:31]}  Rxc2 {[%clk 0:00:39]} 32. Qd3+ {[%clk 0:01:31]}  Kh8 {[%clk 0:00:32]} 33. Qxc2 {[%clk 0:01:32]}  Nf5 {[%clk 0:00:26]} 34. Kf2 {[%clk 0:01:30]}  Ne7 {[%clk 0:00:23]} 35. e4 {[%clk 0:01:29]}  Qa8 {[%clk 0:00:22]} 36. Ke2 {[%clk 0:01:25]}  Qe8 {[%clk 0:00:21]} 37. Kd3 {[%clk 0:01:22]}  Qh5 {[%clk 0:00:21]} 38. Kc4 {[%clk 0:01:22]}  Qf3 {[%clk 0:00:19]} 39. Kb4 {[%clk 0:01:20]}  Kg8 {[%clk 0:00:19]} 40. Ka5 {[%clk 0:01:20]}  Qf1 {[%clk 0:00:16]} 41. Kb6 {[%clk 0:01:17]}  Qa6+ {[%clk 0:00:16]} 42. Kc7 {[%clk 0:01:17]}  Qa8 {[%clk 0:00:16]} 43. Qb3 {[%clk 0:01:14]}  Kf7 {[%clk 0:00:16]} 44. Qxb7 {[%clk 0:01:08]}  Qa3 {[%clk 0:00:15]} 45. Kd6 {[%clk 0:01:07]}  Qxc3 {[%clk 0:00:11]} 46. Qxe7+ {[%clk 0:01:08]}  Kg6 {[%clk 0:00:11]} 47. Qxe6+ {[%clk 0:01:08]}  Kh5 {[%clk 0:00:09]} 48. Qf5+ {[%clk 0:01:07]}  g5 {[%clk 0:00:08]} 49. Qf2 {[%clk 0:01:05]}  Qa5 {[%clk 0:00:07]} 50. Qf7+ {[%clk 0:01:02]}  Kh4 {[%clk 0:00:07]} 51. Qf2+ {[%clk 0:01:01]}  Kh5 {[%clk 0:00:06]} 52. Qf3+ {[%clk 0:01:01]}  Kh4 {[%clk 0:00:06]} 53. Qg3+ {[%clk 0:01:01]}  Kh5 {[%clk 0:00:06]} 54. Qh3+ {[%clk 0:01:01]}  Kg6 {[%clk 0:00:07]} 55. Qe6+ {[%clk 0:00:50]}  Kh5 {[%clk 0:00:07]} 56. Qe8+ {[%clk 0:00:50]}  Kh4 {[%clk 0:00:07]} 57. Qxc6 {[%clk 0:00:50]}  Qd8+ {[%clk 0:00:07]} 58. Qd7 {[%clk 0:00:50]}  Qb8+ {[%clk 0:00:07]} 59. Kd5 {[%clk 0:00:50]}  Qb3+ {[%clk 0:00:07]} 60. Kd6 {[%clk 0:00:49]}  Qb8+ {[%clk 0:00:07]} 61. Ke7 {[%clk 0:00:50]}  g4 {[%clk 0:00:06]} 62. c6 {[%clk 0:00:49]}  Qb4+ {[%clk 0:00:04]} 63. Qd6 {[%clk 0:00:49]}  Qd2 {[%clk 0:00:04]} 64. c7 {[%clk 0:00:48]}  Qc2 {[%clk 0:00:03]} 65. Kd8 {[%clk 0:00:46]}  Qxh2 {[%clk 0:00:02]} 66. c8=Q {[%clk 0:00:46]}  h5 {[%clk 0:00:03]} 67. Qf5 {[%clk 0:00:44]}  Qd2 {[%clk 0:00:02]} 68. Qdf6+ {[%clk 0:00:44]}  Kg3 {[%clk 0:00:03]} 69. e6 {[%clk 0:00:41]}  h4 {[%clk 0:00:01]} 70. e7 {[%clk 0:00:41]}  h3 {[%clk 0:00:01]} 71. e8=Q {[%clk 0:00:41]}  Kg2 {[%clk 0:00:02]} 72. Qee5 {[%clk 0:00:42]}  g3 {[%clk 0:00:02]} 73. Qf1+ {[%clk 0:00:42]}  Kh2 {[%clk 0:00:02]} 74. Qxg3+ {[%clk 0:00:40]}  Kxg3 {[%clk 0:00:02]} 75. Q6f3+ {[%clk 0:00:41]}  Kh4 {[%clk 0:00:02]} 76. Q1xh3+ {[%clk 0:00:42]}  Kg5 {[%clk 0:00:03]} 77. Qhh5# {[%clk 0:00:42]} 1-0


[Site "https://www.chess.com"]

[Event "Titled Tuesday Blitz May 18 2021"]
[White "Nguyen, Van Huy"]
[Black "Jobava, Baadur"]
[WhiteFideId "12401064"]
[BlackFideId "13601520"]
[WhiteElo "2443"]
[BlackElo "2748"]
[Result "0-1"]
[Round "03"]
[TimeControl "180+1"]
[Date "2021.05.18"]
[WhiteClock "0:02:12"]
[BlackClock "0:02:32"]

1. d4 {[%clk 0:03:00]}  d5 {[%clk 0:02:58]} 2. Nf3 {[%clk 0:03:00]}  c6 {[%clk 0:02:59]} 3. c4 {[%clk 0:02:59]}  Nf6 {[%clk 0:02:59]} 4. Nc3 {[%clk 0:02:59]}  dxc4 {[%clk 0:02:59]} 5. a4 {[%clk 0:02:59]}  Bf5 {[%clk 0:02:59]} 6. Nh4 {[%clk 0:03:00]}  g6 {[%clk 0:02:54]} 7. Nxf5 {[%clk 0:02:56]}  gxf5 {[%clk 0:02:55]} 8. e3 {[%clk 0:02:55]}  e6 {[%clk 0:02:55]} 9. Bd3 {[%clk 0:02:56]}  cxd3 {[%clk 0:02:53]} 10. Qxd3 {[%clk 0:02:50]}  Nbd7 {[%clk 0:02:52]} 11. O-O {[%clk 0:02:50]}  Rg8 {[%clk 0:02:45]} 12. Re1 {[%clk 0:02:43]}  Bb4 {[%clk 0:02:41]} 13. Bd2 {[%clk 0:02:41]}  Qe7 {[%clk 0:02:41]} 14. a5 {[%clk 0:02:40]}  a6 {[%clk 0:02:39]} 15. Qc4 {[%clk 0:02:40]}  O-O-O {[%clk 0:02:34]} 16. Ra4 {[%clk 0:02:36]}  Bd6 {[%clk 0:02:33]} 17. b4 {[%clk 0:02:14]}  Bxh2+ {[%clk 0:02:32]} 18. Kxh2 {[%clk 0:02:12]}  Ng4+ {[%clk 0:02:32]} 19. Kg1 {[%clk 0:02:12]}  Qh4 {[%clk 0:02:32]} 0-1


[Site "https://www.chess.com"]

[Event "Titled Tuesday Blitz May 18 2021"]
[White "Sanal, Vahap"]
[Black "Mindlin, Alon"]
[WhiteFideId "6300545"]
[BlackFideId "2800071"]
[WhiteElo "2507"]
[BlackElo "2402"]
[Result "1-0"]
[Round "03"]
[TimeControl "180+1"]
[Date "2021.05.18"]
[WhiteClock "0:00:12"]
[BlackClock "0:00:46"]

1. e4 {[%clk 0:03:00]}  e5 {[%clk 0:02:58]} 2. Nc3 {[%clk 0:02:58]}  Nf6 {[%clk 0:02:57]} 3. f4 {[%clk 0:02:57]}  d5 {[%clk 0:02:57]} 4. fxe5 {[%clk 0:02:57]}  Nxe4 {[%clk 0:02:57]} 5. Qf3 {[%clk 0:02:57]}  Nxc3 {[%clk 0:02:55]} 6. dxc3 {[%clk 0:02:57]}  Be6 {[%clk 0:02:43]} 7. Qg3 {[%clk 0:02:53]}  g6 {[%clk 0:02:38]} 8. Nf3 {[%clk 0:02:51]}  Bg7 {[%clk 0:02:37]} 9. Bf4 {[%clk 0:02:44]}  Nc6 {[%clk 0:02:34]} 10. O-O-O {[%clk 0:02:44]}  h6 {[%clk 0:02:31]} 11. h4 {[%clk 0:02:44]}  Qe7 {[%clk 0:02:30]} 12. Bb5 {[%clk 0:02:43]}  Qc5 {[%clk 0:02:26]} 13. Nd4 {[%clk 0:02:37]}  O-O-O {[%clk 0:02:06]} 14. Bxc6 {[%clk 0:02:12]}  bxc6 {[%clk 0:02:07]} 15. Be3 {[%clk 0:02:10]}  Qe7 {[%clk 0:02:04]} 16. Nxc6 {[%clk 0:02:08]}  Qd7 {[%clk 0:02:04]} 17. Nxd8 {[%clk 0:02:05]}  Rxd8 {[%clk 0:02:05]} 18. Bxa7 {[%clk 0:02:04]}  Qa4 {[%clk 0:02:05]} 19. Bc5 {[%clk 0:01:59]}  Qxa2 {[%clk 0:02:02]} 20. Qf4 {[%clk 0:01:53]}  d4 {[%clk 0:01:46]} 21. cxd4 {[%clk 0:01:45]}  h5 {[%clk 0:01:47]} 22. Kd2 {[%clk 0:01:30]}  Qd5 {[%clk 0:01:46]} 23. Ke3 {[%clk 0:01:20]}  Bg4 {[%clk 0:01:37]} 24. Rd2 {[%clk 0:01:13]}  f6 {[%clk 0:01:33]} 25. exf6 {[%clk 0:01:02]}  Re8+ {[%clk 0:01:12]} 26. Be7 {[%clk 0:00:42]}  Bf8 {[%clk 0:01:12]} 27. Kf2 {[%clk 0:00:31]}  Bxe7 {[%clk 0:01:12]} 28. fxe7 {[%clk 0:00:32]}  Rxe7 {[%clk 0:01:10]} 29. Kg3 {[%clk 0:00:27]}  Rf7 {[%clk 0:01:00]} 30. Qe5 {[%clk 0:00:25]}  Rf3+ {[%clk 0:01:00]} 31. gxf3 {[%clk 0:00:16]}  Qxf3+ {[%clk 0:01:00]} 32. Kh2 {[%clk 0:00:17]}  g5 {[%clk 0:00:48]} 33. Qg3 {[%clk 0:00:15]}  Qd5 {[%clk 0:00:48]} 34. Re1 {[%clk 0:00:13]}  gxh4 {[%clk 0:00:48]} 35. Qf4 {[%clk 0:00:13]}  h3 {[%clk 0:00:46]} 36. Re7 {[%clk 0:00:11]}  Qc4 {[%clk 0:00:45]} 37. Qxc7+ {[%clk 0:00:11]}  Qxc7+ {[%clk 0:00:45]} 38. Rxc7+ {[%clk 0:00:12]}  Kxc7 {[%clk 0:00:46]} 39. c4 {[%clk 0:00:12]} 1-0


[Site "https://www.chess.com"]

[Event "Titled Tuesday Blitz May 18 2021"]
[White "Artemiev, Vladislav"]
[Black "Iniyan, P"]
[WhiteFideId "24101605"]
[BlackFideId "25002767"]
[WhiteElo "2783"]
[BlackElo "2400"]
[Result "1/2-1/2"]
[Round "04"]
[TimeControl "180+1"]
[Date "2021.05.18"]
[WhiteClock "0:00:03"]
[BlackClock "0:00:09"]

1. Nf3 {[%clk 0:02:59]}  Nf6 {[%clk 0:02:58]} 2. b3 {[%clk 0:02:59]}  e6 {[%clk 0:02:59]} 3. Bb2 {[%clk 0:02:59]}  b6 {[%clk 0:03:00]} 4. g3 {[%clk 0:02:59]}  Bb7 {[%clk 0:03:00]} 5. Bg2 {[%clk 0:02:59]}  Be7 {[%clk 0:03:01]} 6. O-O {[%clk 0:03:00]}  O-O {[%clk 0:03:02]} 7. c4 {[%clk 0:03:00]}  c5 {[%clk 0:03:01]} 8. Nc3 {[%clk 0:02:55]}  d6 {[%clk 0:02:58]} 9. e3 {[%clk 0:02:50]}  Nbd7 {[%clk 0:02:58]} 10. Qe2 {[%clk 0:02:49]}  a6 {[%clk 0:02:58]} 11. d4 {[%clk 0:02:46]}  Qc7 {[%clk 0:02:57]} 12. Rfd1 {[%clk 0:02:34]}  Rfe8 {[%clk 0:02:55]} 13. a4 {[%clk 0:02:12]}  Ne4 {[%clk 0:02:43]} 14. Rac1 {[%clk 0:02:06]}  Nxc3 {[%clk 0:02:35]} 15. Bxc3 {[%clk 0:02:06]}  Nf6 {[%clk 0:02:35]} 16. Nd2 {[%clk 0:02:00]}  Bxg2 {[%clk 0:02:34]} 17. Kxg2 {[%clk 0:02:00]}  Qb7+ {[%clk 0:02:33]} 18. Qf3 {[%clk 0:02:00]}  Qxf3+ {[%clk 0:02:32]} 19. Kxf3 {[%clk 0:01:59]}  cxd4 {[%clk 0:02:25]} 20. Bxd4 {[%clk 0:01:58]}  Rab8 {[%clk 0:02:25]} 21. Bxf6 {[%clk 0:01:53]}  gxf6 {[%clk 0:02:26]} 22. g4 {[%clk 0:01:47]}  b5 {[%clk 0:02:23]} 23. cxb5 {[%clk 0:01:31]}  axb5 {[%clk 0:02:24]} 24. a5 {[%clk 0:01:31]}  Ra8 {[%clk 0:02:20]} 25. Ra1 {[%clk 0:01:00]}  Ra6 {[%clk 0:01:58]} 26. e4 {[%clk 0:00:44]}  Rea8 {[%clk 0:01:46]} 27. b4 {[%clk 0:00:43]}  d5 {[%clk 0:01:47]} 28. exd5 {[%clk 0:00:42]}  Bxb4 {[%clk 0:01:46]} 29. Ne4 {[%clk 0:00:39]}  Kg7 {[%clk 0:01:12]} 30. dxe6 {[%clk 0:00:32]}  Rxe6 {[%clk 0:01:13]} 31. Rab1 {[%clk 0:00:26]}  Bxa5 {[%clk 0:01:12]} 32. Rxb5 {[%clk 0:00:25]}  Bb6 {[%clk 0:01:13]} 33. Ng3 {[%clk 0:00:20]}  Ra2 {[%clk 0:00:59]} 34. Rf1 {[%clk 0:00:18]}  Ba7 {[%clk 0:00:42]} 35. Rd5 {[%clk 0:00:15]}  Rb6 {[%clk 0:00:37]} 36. Nf5+ {[%clk 0:00:14]}  Kg6 {[%clk 0:00:37]} 37. Nh4+ {[%clk 0:00:11]}  Kg7 {[%clk 0:00:36]} 38. Nf5+ {[%clk 0:00:12]}  Kg6 {[%clk 0:00:37]} 39. Rd8 {[%clk 0:00:10]}  Rb8 {[%clk 0:00:32]} 40. Rxb8 {[%clk 0:00:09]}  Bxb8 {[%clk 0:00:33]} 41. h3 {[%clk 0:00:09]}  h5 {[%clk 0:00:27]} 42. Ne7+ {[%clk 0:00:04]}  Kh6 {[%clk 0:00:18]} 43. Rd1 {[%clk 0:00:03]}  Ba7 {[%clk 0:00:17]} 44. Rf1 {[%clk 0:00:02]}  hxg4+ {[%clk 0:00:18]} 45. hxg4 {[%clk 0:00:02]}  Kg5 {[%clk 0:00:18]} 46. Nd5 {[%clk 0:00:03]}  Ra3+ {[%clk 0:00:19]} 47. Kg2 {[%clk 0:00:03]}  Kxg4 {[%clk 0:00:18]} 48. Nxf6+ {[%clk 0:00:03]}  Kf5 {[%clk 0:00:19]} 49. Nd5 {[%clk 0:00:04]}  Ra2 {[%clk 0:00:19]} 50. Kf3 {[%clk 0:00:04]}  Ra3+ {[%clk 0:00:18]} 51. Kg2 {[%clk 0:00:04]}  Ra2 {[%clk 0:00:19]} 52. Nc3 {[%clk 0:00:03]}  Rc2 {[%clk 0:00:18]} 53. Nb5 {[%clk 0:00:03]}  Bc5 {[%clk 0:00:18]} 54. Kf3 {[%clk 0:00:02]}  Rb2 {[%clk 0:00:18]} 55. Nc7 {[%clk 0:00:03]}  Ke5 {[%clk 0:00:16]} 56. Kg4 {[%clk 0:00:03]}  Bxf2 {[%clk 0:00:15]} 57. Kf3 {[%clk 0:00:03]}  Bc5 {[%clk 0:00:15]} 58. Re1+ {[%clk 0:00:03]}  Kd6 {[%clk 0:00:15]} 59. Ne8+ {[%clk 0:00:03]}  Kd5 {[%clk 0:00:15]} 60. Nf6+ {[%clk 0:00:03]}  Kc6 {[%clk 0:00:16]} 61. Ne4 {[%clk 0:00:03]}  Bb6 {[%clk 0:00:16]} 62. Rc1+ {[%clk 0:00:03]}  Kd5 {[%clk 0:00:16]} 63. Nc3+ {[%clk 0:00:03]}  Ke5 {[%clk 0:00:16]} 64. Re1+ {[%clk 0:00:04]}  Kf5 {[%clk 0:00:16]} 65. Ne4 {[%clk 0:00:03]}  Rb3+ {[%clk 0:00:16]} 66. Kg2 {[%clk 0:00:03]}  Kg4 {[%clk 0:00:15]} 67. Nf6+ {[%clk 0:00:03]}  Kg5 {[%clk 0:00:15]} 68. Nd5 {[%clk 0:00:03]}  Bd4 {[%clk 0:00:14]} 69. Re2 {[%clk 0:00:03]}  f5 {[%clk 0:00:14]} 70. Re8 {[%clk 0:00:03]}  Rb2+ {[%clk 0:00:13]} 71. Kg3 {[%clk 0:00:03]}  Rb3+ {[%clk 0:00:14]} 72. Kg2 {[%clk 0:00:03]}  Kg6 {[%clk 0:00:13]} 73. Nf4+ {[%clk 0:00:02]}  Kf7 {[%clk 0:00:13]} 74. Rc8 {[%clk 0:00:02]}  Be5 {[%clk 0:00:13]} 75. Ne2 {[%clk 0:00:03]}  Kf6 {[%clk 0:00:13]} 76. Rf8+ {[%clk 0:00:02]}  Kg5 {[%clk 0:00:13]} 77. Rg8+ {[%clk 0:00:03]}  Kf6 {[%clk 0:00:13]} 78. Rf8+ {[%clk 0:00:03]}  Ke6 {[%clk 0:00:14]} 79. Re8+ {[%clk 0:00:03]}  Kd5 {[%clk 0:00:14]} 80. Kf2 {[%clk 0:00:04]}  Ke4 {[%clk 0:00:13]} 81. Ng1 {[%clk 0:00:02]}  Rb2+ {[%clk 0:00:12]} 82. Kf1 {[%clk 0:00:02]}  f4 {[%clk 0:00:11]} 83. Ne2 {[%clk 0:00:02]}  Rc2 {[%clk 0:00:09]} 84. Ng1 {[%clk 0:00:02]}  Rc5 {[%clk 0:00:09]} 85. Kg2 {[%clk 0:00:02]}  Ke3 {[%clk 0:00:09]} 86. Nf3 {[%clk 0:00:01]}  Rc2+ {[%clk 0:00:09]} 87. Kh3 {[%clk 0:00:02]}  Kxf3 {[%clk 0:00:10]} 88. Rxe5 {[%clk 0:00:02]}  Rc1 {[%clk 0:00:10]} 89. Kh2 {[%clk 0:00:02]}  Kf2 {[%clk 0:00:10]} 90. Ra5 {[%clk 0:00:02]}  Re1 {[%clk 0:00:11]} 91. Ra2+ {[%clk 0:00:03]}  Re2 {[%clk 0:00:11]} 92. Ra1 {[%clk 0:00:03]}  f3 {[%clk 0:00:12]} 93. Kh3 {[%clk 0:00:04]}  Re1 {[%clk 0:00:11]} 94. Ra2+ {[%clk 0:00:03]}  Re2 {[%clk 0:00:10]} 95. Ra1 {[%clk 0:00:03]}  Re3 {[%clk 0:00:10]} 96. Kh2 {[%clk 0:00:03]}  Rd3 {[%clk 0:00:09]} 97. Kh3 {[%clk 0:00:02]}  Ke2 {[%clk 0:00:08]} 98. Kg3 {[%clk 0:00:02]}  f2+ {[%clk 0:00:08]} 99. Kg2 {[%clk 0:00:03]}  Rd2 {[%clk 0:00:08]} 100. Rf1 {[%clk 0:00:03]}  Ke3 {[%clk 0:00:07]} 101. Ra1 {[%clk 0:00:03]}  Re2 {[%clk 0:00:08]} 102. Ra3+ {[%clk 0:00:03]}  Ke4 {[%clk 0:00:08]} 103. Kf1 {[%clk 0:00:03]}  Re3 {[%clk 0:00:08]} 104. Ra2 {[%clk 0:00:02]}  Rf3 {[%clk 0:00:08]} 105. Rxf2 {[%clk 0:00:02]}  Rxf2+ {[%clk 0:00:09]} 106. Kxf2 {[%clk 0:00:03]} 1/2-1/2


[Site "https://www.chess.com"]

[Event "Titled Tuesday Blitz May 18 2021"]
[White "Cunjalo, Faris"]
[Black "Naroditsky, Daniel"]
[WhiteFideId "14410710"]
[BlackFideId "2026961"]
[WhiteElo "2234"]
[BlackElo "2608"]
[Result "1-0"]
[Round "04"]
[TimeControl "180+1"]
[Date "2021.05.18"]
[WhiteClock "0:00:06"]
[BlackClock "0:00:04"]

1. c4 {[%clk 0:03:00]}  e5 {[%clk 0:02:58]} 2. g3 {[%clk 0:02:59]}  Nc6 {[%clk 0:02:51]} 3. Bg2 {[%clk 0:02:55]}  Bc5 {[%clk 0:02:51]} 4. Nc3 {[%clk 0:02:55]}  a6 {[%clk 0:02:52]} 5. e3 {[%clk 0:02:54]}  d6 {[%clk 0:02:51]} 6. Nge2 {[%clk 0:02:51]}  Ba7 {[%clk 0:02:51]} 7. d4 {[%clk 0:02:50]}  Nge7 {[%clk 0:02:50]} 8. h3 {[%clk 0:02:36]}  exd4 {[%clk 0:02:48]} 9. exd4 {[%clk 0:02:36]}  Nf5 {[%clk 0:02:46]} 10. d5 {[%clk 0:02:34]}  Ne5 {[%clk 0:02:43]} 11. b3 {[%clk 0:02:30]}  O-O {[%clk 0:02:40]} 12. O-O {[%clk 0:02:30]}  Qf6 {[%clk 0:02:19]} 13. Kh2 {[%clk 0:02:17]}  Re8 {[%clk 0:01:51]} 14. Rb1 {[%clk 0:02:04]}  Bd7 {[%clk 0:01:28]} 15. Ne4 {[%clk 0:01:58]}  Qe7 {[%clk 0:01:28]} 16. Bg5 {[%clk 0:01:50]}  f6 {[%clk 0:01:24]} 17. Bd2 {[%clk 0:01:35]}  b5 {[%clk 0:01:21]} 18. Qc2 {[%clk 0:01:35]}  Nd4 {[%clk 0:01:12]} 19. Nxd4 {[%clk 0:01:34]}  Bxd4 {[%clk 0:01:13]} 20. Rfe1 {[%clk 0:01:01]}  f5 {[%clk 0:01:08]} 21. Bc3 {[%clk 0:00:49]}  Bxc3 {[%clk 0:01:01]} 22. Nxc3 {[%clk 0:00:48]}  Qf6 {[%clk 0:00:55]} 23. f4 {[%clk 0:00:41]}  Nf7 {[%clk 0:00:50]} 24. Qd3 {[%clk 0:00:39]}  h5 {[%clk 0:00:41]} 25. cxb5 {[%clk 0:00:31]}  axb5 {[%clk 0:00:40]} 26. Rxe8+ {[%clk 0:00:32]}  Bxe8 {[%clk 0:00:37]} 27. h4 {[%clk 0:00:25]}  b4 {[%clk 0:00:36]} 28. Na4 {[%clk 0:00:23]}  Bxa4 {[%clk 0:00:36]} 29. bxa4 {[%clk 0:00:24]}  Rxa4 {[%clk 0:00:37]} 30. Qc2 {[%clk 0:00:23]}  Ra3 {[%clk 0:00:29]} 31. Rxb4 {[%clk 0:00:23]}  Nh6 {[%clk 0:00:30]} 32. Rb3 {[%clk 0:00:17]}  Ng4+ {[%clk 0:00:28]} 33. Kh3 {[%clk 0:00:17]}  Ra7 {[%clk 0:00:12]} 34. Bf3 {[%clk 0:00:17]}  Qd4 {[%clk 0:00:11]} 35. Qxf5 {[%clk 0:00:14]}  Ra8 {[%clk 0:00:04]} 36. Bxg4 {[%clk 0:00:13]}  hxg4+ {[%clk 0:00:04]} 37. Qxg4 {[%clk 0:00:13]}  Qxd5 {[%clk 0:00:04]} 38. Qe2 {[%clk 0:00:07]}  Qh1+ {[%clk 0:00:03]} 39. Kg4 {[%clk 0:00:08]}  Qd5 {[%clk 0:00:03]} 40. h5 {[%clk 0:00:06]}  Rf8 {[%clk 0:00:03]} 41. Qd3 {[%clk 0:00:04]}  Qe6+ {[%clk 0:00:02]} 42. Kh4 {[%clk 0:00:05]}  Qf6+ {[%clk 0:00:02]} 43. Kh3 {[%clk 0:00:05]}  Qe6+ {[%clk 0:00:03]} 44. Kh4 {[%clk 0:00:05]}  Qe7+ {[%clk 0:00:03]} 45. Kh3 {[%clk 0:00:05]}  Qf7 {[%clk 0:00:03]} 46. Qg6 {[%clk 0:00:04]}  Qd7+ {[%clk 0:00:04]} 47. Kh4 {[%clk 0:00:04]}  Qe7+ {[%clk 0:00:05]} 48. Kg4 {[%clk 0:00:04]}  Qe2+ {[%clk 0:00:05]} 49. Kh3 {[%clk 0:00:04]}  Qf1+ {[%clk 0:00:05]} 50. Kh4 {[%clk 0:00:03]}  Qh1+ {[%clk 0:00:05]} 51. Kg4 {[%clk 0:00:04]}  Qd1+ {[%clk 0:00:05]} 52. Kh4 {[%clk 0:00:05]}  Qh1+ {[%clk 0:00:05]} 53. Kg4 {[%clk 0:00:05]}  d5 {[%clk 0:00:04]} 54. Re3 {[%clk 0:00:04]}  Qd1+ {[%clk 0:00:04]} 55. Kh4 {[%clk 0:00:05]}  Qh1+ {[%clk 0:00:04]} 56. Kg5 {[%clk 0:00:05]}  d4 {[%clk 0:00:03]} 57. Re7 {[%clk 0:00:02]}  Qd5+ {[%clk 0:00:04]} 58. f5 {[%clk 0:00:03]}  Rf7 {[%clk 0:00:02]} 59. Re8+ {[%clk 0:00:03]}  Rf8 {[%clk 0:00:02]} 60. Re7 {[%clk 0:00:04]}  Rf7 {[%clk 0:00:03]} 61. Qxf7+ {[%clk 0:00:02]}  Qxf7 {[%clk 0:00:03]} 62. Rxf7 {[%clk 0:00:03]}  Kxf7 {[%clk 0:00:04]} 63. Kf4 {[%clk 0:00:04]}  Kf6 {[%clk 0:00:02]} 64. g4 {[%clk 0:00:04]}  d3 {[%clk 0:00:02]} 65. g5+ {[%clk 0:00:04]}  Ke7 {[%clk 0:00:03]} 66. Ke3 {[%clk 0:00:05]}  d2 {[%clk 0:00:03]} 67. Kxd2 {[%clk 0:00:06]}  Kd6 {[%clk 0:00:04]} 1-0


[Site "https://www.chess.com"]

[Event "Titled Tuesday Blitz May 18 2021"]
[White "Fier, Alexandr"]
[Black "Praggnanandhaa R"]
[WhiteFideId "2107139"]
[BlackFideId "25059530"]
[WhiteElo "2569"]
[BlackElo "2555"]
[Result "0-1"]
[Round "04"]
[TimeControl "180+1"]
[Date "2021.05.18"]
[WhiteClock "0:00:05"]
[BlackClock "0:00:21"]

1. d4 {[%clk 0:03:00]}  Nf6 {[%clk 0:02:59]} 2. c4 {[%clk 0:03:00]}  g6 {[%clk 0:02:58]} 3. Nc3 {[%clk 0:03:00]}  Bg7 {[%clk 0:02:58]} 4. e4 {[%clk 0:03:00]}  d6 {[%clk 0:02:59]} 5. Be2 {[%clk 0:03:00]}  O-O {[%clk 0:02:58]} 6. Bg5 {[%clk 0:03:01]}  Na6 {[%clk 0:02:49]} 7. f4 {[%clk 0:02:59]}  c6 {[%clk 0:02:49]} 8. Bf3 {[%clk 0:02:47]}  Nc7 {[%clk 0:02:47]} 9. Qd2 {[%clk 0:02:46]}  Rb8 {[%clk 0:02:37]} 10. Nge2 {[%clk 0:02:36]}  b5 {[%clk 0:02:29]} 11. e5 {[%clk 0:02:36]}  Nfe8 {[%clk 0:02:29]} 12. Bxc6 {[%clk 0:02:31]}  bxc4 {[%clk 0:02:28]} 13. O-O {[%clk 0:02:27]}  d5 {[%clk 0:02:21]} 14. Ba4 {[%clk 0:02:25]}  f6 {[%clk 0:02:18]} 15. Bh4 {[%clk 0:02:24]}  Bf5 {[%clk 0:02:18]} 16. Ng3 {[%clk 0:02:09]}  Bd3 {[%clk 0:02:16]} 17. Rf2 {[%clk 0:02:06]}  Ne6 {[%clk 0:02:14]} 18. Nge2 {[%clk 0:01:57]}  Bh6 {[%clk 0:02:06]} 19. exf6 {[%clk 0:01:40]}  Nxf6 {[%clk 0:02:01]} 20. Bxf6 {[%clk 0:01:36]}  Rxf6 {[%clk 0:01:59]} 21. b3 {[%clk 0:01:27]}  Qd6 {[%clk 0:01:54]} 22. Raf1 {[%clk 0:01:22]}  Rbf8 {[%clk 0:01:49]} 23. g3 {[%clk 0:01:21]}  g5 {[%clk 0:01:44]} 24. bxc4 {[%clk 0:01:21]}  dxc4 {[%clk 0:01:35]} 25. d5 {[%clk 0:00:41]}  gxf4 {[%clk 0:01:35]} 26. dxe6 {[%clk 0:00:16]}  fxg3 {[%clk 0:01:13]} 27. Rxf6 {[%clk 0:00:16]}  Rxf6 {[%clk 0:01:10]} 28. Qe1 {[%clk 0:00:17]}  Be3+ {[%clk 0:01:06]} 29. Kg2 {[%clk 0:00:17]}  Rf2+ {[%clk 0:00:54]} 30. Rxf2 {[%clk 0:00:18]}  gxf2 {[%clk 0:00:55]} 31. Qh1 {[%clk 0:00:18]}  Qe5 {[%clk 0:00:42]} 32. Bc6 {[%clk 0:00:08]}  Qg7+ {[%clk 0:00:29]} 33. Kf3 {[%clk 0:00:08]}  Qf6+ {[%clk 0:00:27]} 34. Kxe3 {[%clk 0:00:08]}  f1=Q {[%clk 0:00:27]} 35. Qd5 {[%clk 0:00:07]}  Q1f2+ {[%clk 0:00:21]} 36. Kd2 {[%clk 0:00:07]}  Q6f4+ {[%clk 0:00:21]} 37. Kd1 {[%clk 0:00:05]}  Qf1# {[%clk 0:00:21]} 0-1


[Site "https://www.chess.com"]